Workbook

Sheet 6д
A3: День: суббота
A4: Неделя: первая
A5: Период: весна-лето
A6: Категория: дети с 12лет и старше
A7: МЕНЮ – 6 день
B8: Наименование | C8: Вес блюда | D8: Состав | E8: Белки | F8: Жиры | G8: Углеводы | H8: Калорий
A9: ЗАВТРАК
A10: №384 ср 2003г. | B10: Каша манная на цельном молоке со сливочным маслом | C10: 250 | D10: Крупа манная 44 | E10: 4 | F10: 0.25 | G10: 24.7 | H10: 116.4
D11: Молоко цельное 100 | E11: 2.8 | F11: 3.2 | G11: 4.7 | H11: 58
D12: Сахар 5 | G12: 4.9 | H12: 18.7
D13: Масло сливочное 5 | E13: 0.03 | F13: 4.1 | G13: 0.45 | H13: 37.4
A14: №1,3 ср 2003г. | B14: Бутерброд с сыром с маслом | C14: 100 | D14: Хлеб пшеничный 75 | E14: 3.2 | F14: 0.18 | G14: 6.3 | H14: 30.4
D15: Сыр 20 | E15: 5.4 | F15: 5.5 | H15: 72.2
D16: Масло сливочное 5 | E16: 0.03 | F16: 4.1 | G16: 0.45 | H16: 37.4
A17: №958 ср 2003г. | B17: Кофейный напиток | C17: 200 | D17: Кофейный напиток 8 | E17: 0.8 | F17: 0.2 | G17: 4.6 | H17: 23.2
D18: Молоко цельное 50 | E18: 1.4 | F18: 4.6 | G18: 2.35 | H18: 29
D19: Сахар 15 | G19: 14.9 | H19: 56.1
B20: Хлеб ржаной | C20: 29 | D20: Хлеб ржаной 29 | E20: 4.3 | F20: 0.2 | G20: 8.2 | H20: 38
B21: Хлеб пшеничный | C21: 23 | D21: Хлеб пшеничный 23 | E21: 3.2 | F21: 0.18 | G21: 6.3 | H21: 30.4
B22: ИТОГО | C22: =SUM(C10:C21) -> 602 | E22: =SUM(E10:E21) -> 25.16 | F22: 22.51 | G22: 77.85 | H22: 547.2
A23: II ЗАВТРАК
B24: Вафли шоколадные | C24: 15 | D24: Вафли шоколадные 15 | E24: 0.8 | F24: 1.3 | G24: 7.6 | H24: 43.2
A25: №859 ср 2003г. | B25: Компот из свежих яблок | C25: 200 | D25: Яблоки 40 | E25: 1 | G25: 13.5 | H25: 18
D26: Сахар 20 | G26: 19.9 | H26: 74.8
B27: ИТОГО | C27: =SUM(C24:C26) -> 215 | E27: =SUM(E24:E26) -> 1.8 | F27: 1.3 | G27: 41 | H27: 136
B28: ОБЕД
A29: № 88ср 2003г. | B29: Салат из свеклы вареной | C29: 100 | D29: Свекла 130 | E29: 1.7 | G29: 10.8 | H29: 48
D30: Чеснок 2 | E30: 0.13 | G30: 0.4 | H30: 2.1
D31: Масло растительное 5 | E31: 4.9 | G31: 44.9
A35: № 222ср 2003г. | B35: Суп рисовый на к/б со сметаной | C35: 250 | D35: Рис 20 | E35: 1.4 | F35: 0.12 | G35: 15.6 | H35: 64.6
D36: Томатная паста 5 | E36: 0.48 | G36: 1.89 | H36: 9.6
D37: Масло растительное 3 | F37: 2.9 | H37: 26.9
D38: Картофель 50 | E38: 1 | F38: 0.05 | G38: 9.8 | H38: 41.5
D39: Чеснок 1
D40: Лук 15 | E40: 0.34 | G40: 1.9 | H40: 8.6
A41: №608 ср 2003г. | B41: Биточки | C41: 100 | D41: Мясо говядины 101(74) | E41: 14 | F41: 10.2 | H41: 138.3
D42: Хлеб пшеничный 18 | E42: 1.47 | F42: 0.22 | G42: 7.56 | H42: 36.5
D43: Лук 20 | E43: 0.34 | G43: 1.9 | H43: 8.6
D44: Масло растительное 5 | F44: 4.9 | H44: 44.9
A45: № 413ср 2003г. | B45: Макароны отварные | C45: 180 | D45: Макароны 60 | E45: 5.3 | F45: 0.65 | G45: 37.1 | H45: 120
D46: Масло сливочное 10 | E46: 0.06 | F46: 8.2 | G46: 0.1 | H46: 74.8
B47: Сок персиковый | C47: 200 | D47: Сок 200 | E47: 1 | G47: 23.4 | H47: 94
B48: Хлеб ржаной | C48: 50 | D48: Хлеб ржаной 50 | E48: 3.2 | F48: 0.5 | G48: 20.4 | H48: 95
B49: Хлеб пшеничный | C49: 50 | D49: Хлеб пшеничный 50 | E49: 4 | F49: 0.6 | G49: 21 | H49: 101
B50: ИТОГО | C50: =SUM(C29:C49) -> 930 | E50: =SUM(E29:E49) -> 39.32 | F50: 28.34 | G50: 196.75 | H50: 914.4
A51: ПОЛДНИК
A52: №1 ср 2003г. | B52: Бутерброд с маслом | C52: 100 | D52: Хлеб пшеничный 90 | E52: 0.81 | F52: 0.12 | G52: 4.2 | H52: 20.3
D53: Масло сливочное 10 | E53: 0.06 | F53: 8.2 | G53: 0.08 | H53: 74.8
A54: № 424 ср 2003г. | B54: Яйцо вареное | C54: 80 | D54: Яйцо вареное 2шт. | E54: 10.4 | F54: 9.4 | G54: 0.62 | H54: 129.2
A55: № 942 ср 2003г. | B55: Чай с сахаром | C55: 200 | D55: Чай 1 | E55: 0.2 | G55: 0.06 | H55: 1.1
D56: Сахар 15 | G56: 19.9 | H56: 74.3
B58: Хлеб ржаной | C58: 20 | D58: Хлеб ржаной 20 | E58: 1.3 | F58: 0.2 | G58: 3.2 | H58: 38
B59: Хлеб пшеничный | C59: 10 | D59: Хлеб пшеничный 10 | E59: 0.81 | F59: 0.12 | G59: 4.2 | H59: 20.3
B60: ИТОГО | C60: =SUM(C52:C59) -> 410 | E60: =SUM(E52:E59) -> 13.58 | F60: 18.04 | G60: 32.26 | H60: 358
A61: УЖИН
A62: №637 с р 2003г. | B62: Курица отварная | C62: 100 | D62: Мясо птицы 100 | E62: 8.8 | F62: 6.5 | G62: 0.2 | H62: 91.5
A63: №320 с р 2003г. | B63: Картофель тушеная | C63: 230 | D63: Картофель 230 | E63: 3.6 | F63: 1.18 | G63: 35.4 | H63: 119.4
D64: Морковь 20 | E64: 0.26 | F64: 0.02 | G64: 1.4 | H64: 6.6
D65: Лук 20 | E65: 0.34 | G65: 1.9 | H65: 8.6
D66: Томатная паста 10 | E66: 0.48 | G66: 1.89 | H66: 9.6
D67: Масло сливочное 5 | E67: 0.03 | F67: 4.1 | G67: 0.045 | H67: 37.4
B68: Хлеб пшеничный | C68: 71 | D68: Хлеб пшеничный 71 | E68: 4.8 | F68: 0.6 | G68: 25.2 | H68: 121.8
B69: Хлеб ржаной | C69: 41 | D69: Хлеб ржаной 41 | E69: 2 | F69: 0.3 | G69: 17.2 | H69: 57
A70: № 883ср 2003г. | B70: Кисель смородиновый | C70: 200 | D70: Кисель 31 | G70: 25.3 | H70: 95.6
B71: ИТОГО | C71: =SUM(C62:C70) -> 642 | E71: =SUM(E62:E70) -> 20.31 | F71: 12.7 | G71: 108.535 | H71: 547.5
A72: ПАУЖИН
B73: Бананы | C73: 200 | D73: Бананы 200 | E73: 2.2 | F73: 0.15 | G73: 28 | H73: 133
B74: ИТОГО | C74: =C22+C27+C50+C60+C71+C73 -> 2999 | E74: =E22+E27+E50+E60+E71+E73 -> 102.37 | F74: =F22+F27+F50+F60+F71+F73 -> 83.04 | G74: 484.395 | H74: 2636.1
